bitfinex/quotes_ETHUSD_20250329
["timestamp","ask_amount","ask_price","bid_price","bid_amount"]
[1743224969979,22.51227981,1897.0,1896.6,6.05336]
[1743224970181,22.51227981,1897.0,1896.7,0.039993]
[1743224970479,22.51227981,1897.0,1896.6,6.05336]
[1743224970778,22.51227981,1897.0,1896.7,0.039993]
[1743224970957,22.51227981,1897.0,1896.6,6.05336]
[1743224971444,22.51227981,1897.0,1896.7,0.039993]
[1743224971648,22.51227981,1897.0,1896.6,6.05336]
[1743224971867,22.51227981,1897.0,1896.7,0.039993]
[1743224972195,22.51227981,1897.0,1896.6,7.185971]
[1743224972406,22.51227981,1897.0,1896.7,0.039993]
[1743224972813,22.51227981,1897.0,1896.8,0.13296079]
[1743224972966,22.51227981,1897.0,1896.6,6.05336]
[1743224973306,22.51227981,1897.0,1896.7,0.039993]
[1743224973607,22.51227981,1897.0,1896.6,6.05336]
[1743224973789,22.51227981,1897.0,1896.7,0.039993]
[1743224973964,22.51227981,1897.0,1896.8,0.13296079]
[1743224974164,22.51227981,1897.0,1896.6,6.05336]
[1743224974367,3.20766981,1896.9,1896.7,0.039993]
[1743224974565,8.47955981,1896.9,1896.8,0.13296079]
[1743224974791,5.27204,1896.8,1896.6,0.7808]
[1743224974965,5.27204,1896.8,1896.7,0.039993]
[1743224975179,5.27204,1896.8,1896.7,0.1330413]
[1743224975393,5.27204,1896.8,1896.6,0.7808]
[1743224975709,5.27204,1896.8,1896.7,0.039993]
[1743224975898,5.27204,1896.8,1896.7,0.1730343]
[1743224976197,13.75199981,1896.8,1896.7,0.039993]
[1743224976399,13.75199981,1896.8,1896.7,0.1330413]
[1743224976579,5.27244,1896.7,1896.4,0.7805]
[1743224976899,8.48010981,1896.7,1896.5,0.04088261]
[1743224980178,5.27244,1896.7,1896.5,0.04088261]
[1743224980377,13.75195981,1896.8,1896.5,0.04088261]
[1743224981306,8.47970981,1896.8,1896.5,0.04088261]
[1743224981991,13.75196981,1896.8,1896.5,0.04088261]
[1743224982382,8.47970981,1896.8,1896.5,0.04088261]
[1743224986802,3.20766981,1896.9,1896.6,5.27242]
[1743224987002,3.20766981,1896.9,1896.6,5.40554182]
[1743224987316,8.47948981,1896.9,1896.7,0.039993]
[1743224987472,8.47948981,1896.9,1896.6,0.13312182]
[1743224987674,8.47948981,1896.9,1896.8,0.03954827]
[1743224987913,8.47948981,1896.9,1896.5,5.2727]
[1743224988088,8.47948981,1896.9,1896.5,5.87802]
[1743224990709,8.47948981,1896.9,1896.6,0.04043778]
[1743225000028,5.27204,1896.8,1896.6,0.04043778]
[1743225000645,5.27204,1896.8,1896.7,0.039993]
[1743225001043,5.27204,1896.8,1896.4,6.05357]
[1743225001243,5.27204,1896.8,1896.7,0.039993]
[1743225001720,5.27204,1896.8,1896.4,12.459196]
[1743225001910,5.27204,1896.8,1896.7,0.17277855]
[1743225002225,5.27204,1896.8,1896.4,12.459196]
[1743225002402,5.27204,1896.8,1896.7,0.17277855]
[1743225002610,3.20766981,1896.9,1896.5,6.04387]
[1743225002850,8.47947981,1896.9,1896.7,0.17277855]
[1743225005308,3.20766981,1896.9,1896.7,0.17277855]
[1743225005618,3.20766981,1896.9,1896.8,0.7712]
[1743225005945,3.20766981,1896.9,1896.8,0.81074827]
[1743225006148,6.06,1897.3,1896.8,5.36426764]
[1743225006347,6.06,1897.3,1897.2,6.04212]
[1743225006509,4.962,1897.5,1897.2,6.04212]
[1743225007041,6.79254176,1897.5,1897.2,6.09482405]
[1743225007812,6.79254176,1897.5,1897.2,11.36554405]
[1743225008013,6.79254176,1897.5,1897.2,11.31284]
[1743225008245,4.962,1897.5,1897.3,5.27064]
[1743225008415,6.79254176,1897.5,1897.3,5.27064]
[1743225008915,4.962,1897.5,1897.3,5.27064]
[1743225009640,4.962,1897.5,1897.4,0.03688085]
[1743225010213,8.16529793,1897.5,1897.4,0.03688085]
[1743225010412,8.16529793,1897.5,1897.2,6.04192]
[1743225010609,8.16529793,1897.5,1897.4,0.16863406]
[1743225010813,4.962,1897.5,1897.4,0.16863406]
[1743225013253,3.20329793,1897.6,1897.4,0.16863406]
[1743225013551,12.08736,1897.8,1897.5,6.04115]
[1743225013552,6.06,1897.8,1897.5,6.04115]
[1743225013750,8.47230793,1897.9,1897.5,6.07758645]
[1743225014730,8.47296793,1897.7,1897.5,0.03643645]
[1743225014940,8.47310793,1897.6,1897.5,0.03643645]
[1743225015140,9.92319572,1897.6,1897.5,0.03643645]
[1743225016125,1.45008779,1897.6,1897.5,0.03643645]
[1743225016448,5.26981,1897.6,1897.5,0.03643645]
[1743225016942,9.23106793,1897.7,1897.5,0.16516884]
[1743225017259,3.20329793,1897.7,1897.5,0.16516884]
[1743225018147,0.7867,1898.1,1897.8,0.7784]
[1743225018349,5.26849,1898.1,1897.8,0.7784]
[1743225020331,19.49259793,1898.2,1897.8,0.7784]
[1743225020648,24.76093793,1898.2,1897.8,0.7784]
[1743225020852,5.26868,1898.1,1897.8,0.7784]
[1743225021953,5.26868,1898.1,1897.9,0.03465929]
[1743225022324,19.49255793,1898.2,1897.9,0.03465929]
[1743225022949,24.76097793,1898.2,1897.9,0.03465929]
[1743225023151,5.26843,1898.1,1897.9,0.03465929]
[1743225023652,8.26226188,1898.1,1897.9,0.03465929]
[1743225025657,4.3367,1898.0,1897.9,0.03465929]
[1743225025824,10.75975353,1898.0,1897.9,0.03465929]
[1743225026158,6.05665,1897.6,1897.2,0.7784]
[1743225026319,8.26395188,1897.5,1897.2,0.7784]
[1743225026523,5.27052,1897.4,1897.3,0.15453389]
[1743225027626,8.26395188,1897.5,1897.3,0.15453389]
[1743225028864,5.27036,1897.4,1897.3,0.15453389]
[1743225029243,8.26395188,1897.5,1897.3,0.15453389]
[1743225029470,5.27036,1897.4,1897.3,0.15453389]
[1743225032075,5.27036,1897.4,1897.3,0.2902209]
[1743225036277,5.27012,1897.5,1897.3,0.2902209]
[1743225037676,11.32655,1897.6,1897.3,0.2902209]
[1743225037876,5.26981,1897.6,1897.3,1.0769209]
[1743225038047,5.27016,1897.5,1897.3,1.0769209]
[1743225038246,10.54048,1897.5,1897.3,1.0769209]
[1743225040986,5.27036,1897.4,1897.3,1.0769209]
[1743225043261,5.27016,1897.5,1897.3,1.0769209]
[1743225043462,10.54036,1897.5,1897.3,1.0769209]
[1743225044171,5.27016,1897.5,1897.3,1.0769209]
[1743225044372,11.32928,1897.8,1897.4,5.27032]
[1743225044585,16.28928,1897.8,1897.5,0.7867]
[1743225044974,16.28928,1897.8,1897.6,0.28928514]
[1743225045795,4.96,1897.9,1897.6,0.28928514]
[1743225045961,4.96,1897.9,1897.6,5.55889514]
[1743225048067,8.26261188,1898.0,1897.6,5.55889514]
[1743225048464,8.26261188,1898.0,1897.6,6.72046365]
[1743225049161,16.28842,1898.1,1897.7,5.26952]
[1743225049392,6.06,1898.1,1897.8,6.12406157]
[1743225049590,6.06,1898.1,1897.8,1.09028716]
[1743225049797,11.32857,1898.1,1897.8,1.09028716]
[1743225050271,16.59724,1898.1,1897.8,1.09028716]
[1743225050669,5.26872,1898.0,1897.8,1.09028716]
[1743225051074,5.26872,1898.0,1897.8,0.28798716]
[1743225051396,5.26898,1897.9,1897.8,0.28798716]
[1743225059733,6.06,1898.1,1897.8,0.28798716]
[1743225060042,6.06,1898.1,1897.8,5.55709716]
[1743225060211,6.06,1898.1,1897.8,6.19254688]
[1743225060597,11.32857,1898.1,1897.8,0.92343688]
[1743225062298,2.99383188,1898.0,1897.8,0.92343688]
[1743225062598,2.99411139,1898.0,1897.8,0.92343688]
[1743225064332,8.26290139,1898.0,1897.8,0.92343688]
[1743225064517,8.26290139,1898.0,1897.8,0.28798716]
[1743225068447,2.99442398,1897.9,1897.8,0.28798716]
[1743225070443,8.26340398,1897.9,1897.8,0.28798716]
[1743225072045,5.26898,1897.9,1897.8,0.28798716]
[1743225075110,1.7964032,1898.1,1897.8,5.55716716]
[1743225075446,1.7964032,1898.1,1897.8,6.19789317]
[1743225077752,1.7964032,1898.0,1897.8,0.92871317]
[1743225078323,1.7964032,1897.9,1897.8,0.28798716]
[1743225080856,9.07726641,1898.0,1897.8,0.28798716]
[1743225081836,5.26898,1897.9,1897.8,0.28798716]
[1743225084468,6.08318,1897.9,1897.8,0.28798716]
[1743225084677,7.51780464,1897.9,1897.8,0.28798716]
[1743225088774,8.04660464,1897.9,1897.8,0.28798716]
[1743225088991,7.51780464,1897.9,1897.8,0.28798716]
[1743225089484,8.26306641,1898.0,1897.8,0.28798716]
[1743225089777,18.48999641,1898.0,1897.7,0.784]
[1743225089961,13.22106641,1898.0,1897.9,0.28617763]
[1743225099100,18.49003641,1898.0,1897.6,5.26975]
[1743225099296,18.49003641,1898.0,1897.9,0.28649704]
[1743225099470,5.26934,1897.8,1897.5,0.7991]
[1743225100805,2.99418641,1897.8,1897.5,0.7991]
[1743225100989,5.26981,1897.6,1897.3,0.7991]
[1743225102602,5.26981,1897.6,1897.4,0.03688085]
[1743225104000,7.06673124,1897.6,1897.4,0.03688085]
[1743225104201,5.26981,1897.6,1897.4,0.03688085]
[1743225106225,7.06673124,1897.6,1897.4,0.03688085]
[1743225107004,10.53985,1897.6,1897.5,0.25272035]
[1743225107195,13.10037124,1897.6,1897.5,0.2891568]
[1743225107812,7.83033124,1897.6,1897.5,0.2891568]
[1743225113121,1.79692124,1897.7,1897.5,1.0724568]
[1743225113484,12.02418124,1897.8,1897.5,1.0724568]
[1743225113979,12.02418124,1897.8,1897.5,1.70671948]
[1743225114930,1.79692124,1897.7,1897.5,1.70671948]
[1743225116715,7.06618124,1897.8,1897.5,1.70671948]
[1743225117106,1.79692124,1897.7,1897.5,1.70671948]
[1743225122448,1.79692124,1897.7,1897.5,1.0724568]
[1743225125454,1.79692124,1897.7,1897.5,0.2891568]
[1743225125651,7.06646124,1897.7,1897.5,0.2891568]
[1743225126852,7.06673124,1897.6,1897.5,0.2891568]
[1743225133973,7.06673124,1897.6,1897.5,0.2391568]
[1743225136160,8.30035836,1897.6,1897.5,0.2391568]
[1743225139043,12.65215836,1897.6,1897.5,0.2391568]
[1743225139247,5.27073,1897.3,1896.9,6.09392]
[1743225139442,7.06765124,1897.3,1896.9,11.36553]
[1743225139685,7.06765124,1897.3,1896.9,6.09381]
[1743225139977,7.06765124,1897.3,1897.0,0.609381]
[1743225141090,1.79692124,1897.2,1897.0,0.609381]
[1743225141761,1.79692124,1897.2,1897.1,0.22387701]
[1743225142165,1.79692124,1897.3,1897.1,0.22387701]
[1743225142359,1.79692124,1897.3,1897.2,0.8222]
[1743225142685,1.79692124,1897.3,1897.2,0.22378938]
[1743225142884,1.79692124,1897.3,1897.2,0.0377698]
[1743225143753,1.79692124,1897.3,1897.0,1.431581]
[1743225143953,1.79692124,1897.3,1897.1,0.22387701]
[1743225145292,1.79692124,1897.7,1897.2,0.8222]
[1743225145597,6.06,1897.8,1897.5,0.8222]
[1743225145768,1.79692124,1897.9,1897.6,5.26969]
[1743225145769,6.75492124,1897.9,1897.6,5.26969]
[1743225146083,1.79692124,1897.8,1897.6,5.30566209]
[1743225146268,6.75492124,1897.9,1897.6,5.30566209]
[1743225146600,1.79692124,1897.9,1897.7,0.8222]
[1743225146791,1.79692124,1897.9,1897.8,0.03510351]
[1743225147018,7.85692124,1898.1,1897.8,0.03510351]
[1743225147303,1.79692124,1898.0,1897.8,0.03510351]
[1743225150316,7.06562124,1898.0,1897.8,0.03510351]
[1743225150820,1.79692124,1898.0,1897.8,0.03510351]
[1743225151106,7.06574124,1898.0,1897.8,0.03510351]
[1743225152026,7.06574124,1898.0,1897.9,0.22252017]
[1743225152208,7.06574124,1898.0,1897.9,0.25717946]
[1743225154519,1.79692124,1898.0,1897.9,0.25717946]
[1743225155090,13.12538124,1898.1,1897.9,0.25717946]
[1743225155418,13.12538124,1898.1,1897.9,1.04777946]
[1743225155578,18.39402124,1898.1,1897.9,1.04777946]
[1743225156443,7.06562124,1898.0,1897.9,1.04777946]
[1743225156741,7.06562124,1898.0,1897.9,0.25717946]
[1743225157538,5.2687,1898.0,1897.9,0.25717946]
[1743225173082,3.0,1898.3,1897.9,0.25717946]
[1743225173083,0.8018,1898.4,1897.9,0.25717946]
[1743225173258,7.06500124,1898.3,1898.0,0.7968]
[1743225173433,7.06500124,1898.3,1898.0,1.05277041]
[1743225173783,7.06511124,1898.2,1898.0,1.05277041]
[1743225174075,5.26819,1898.2,1898.0,1.05277041]
[1743225175378,7.06511124,1898.2,1898.0,1.05277041]
[1743225177179,1.79692124,1898.2,1898.0,1.05277041]
[1743225177854,7.06510124,1898.2,1898.0,1.05277041]
[1743225181917,12.33349124,1898.2,1898.0,1.05277041]
[1743225182197,7.06510124,1898.2,1898.0,1.05277041]
[1743225182897,5.26842,1898.1,1898.0,0.25597041]
[1743225183089,7.84694124,1898.1,1898.0,0.25597041]
[1743225187470,5.81791,1898.3,1898.0,0.25597041]
[1743225187471,7.84645124,1898.3,1898.0,0.25597041]
[1743225187675,5.26815,1898.2,1898.0,0.25597041]
[1743225187875,10.53652,1898.2,1898.0,0.25597041]
[1743225188297,5.26842,1898.1,1898.0,0.25597041]
[1743225189779,7.06534124,1898.1,1898.0,0.25597041]
[1743225191602,7.06507124,1898.2,1898.0,0.25597041]
[1743225192906,5.26815,1898.2,1898.0,0.25597041]
[1743225193088,7.06507124,1898.2,1898.0,0.25597041]
[1743225194209,7.06534124,1898.1,1898.0,0.25597041]
[1743225194895,8.37685036,1898.1,1898.0,0.25597041]
[1743225195103,5.26902,1897.9,1897.7,0.812]
[1743225195296,7.06594124,1897.9,1897.7,0.812]
[1743225195906,5.26902,1897.9,1897.7,0.812]
[1743225196915,5.26902,1897.9,1897.8,0.22209967]
[1743225198713,5.26902,1897.9,1897.8,0.25720318]
[1743225211225,5.26877,1898.0,1897.8,1.01390318]
[1743225215333,12.33461124,1898.0,1897.8,0.25720318]
[1743225218416,13.56807236,1898.0,1897.8,0.25720318]
[1743225220369,12.33461124,1898.0,1897.8,0.25720318]
[1743225222358,12.33451124,1898.0,1897.8,0.25720318]
[1743225222662,5.26877,1898.0,1897.8,0.25720318]
[1743225223261,5.26898,1897.9,1897.8,0.25720318]
[1743225223427,7.06569124,1898.0,1897.8,0.25720318]
[1743225229464,8.63852124,1898.2,1897.8,0.25720318]
[1743225229627,6.06,1898.2,1898.0,5.26851]
[1743225229959,6.06,1898.2,1898.1,0.25545991]
[1743225230141,1.79692124,1898.2,1898.1,0.25545991]
[1743225235645,7.06506124,1898.2,1898.1,0.25545991]
[1743225235845,1.79692124,1898.2,1898.1,0.25545991]
[1743225236051,7.06506124,1898.2,1898.1,0.25545991]
[1743225236252,8.29835836,1898.2,1898.1,0.25545991]
[1743225236566,8.29835836,1898.2,1898.1,0.25463465]
[1743225238370,7.06506124,1898.2,1898.1,0.25463465]
[1743225238972,7.85206124,1898.2,1898.1,0.25463465]
[1743225241884,0.7954,1898.4,1898.1,0.25463465]
[1743225242095,6.06,1898.6,1898.2,0.7829]
[1743225242096,1.79692124,1898.6,1898.2,0.7829]
[1743225242379,1.79692124,1898.5,1898.3,0.22092132]
[1743225242571,1.79692124,1898.5,1898.3,1.37490745]
[1743225249589,5.26688,1898.7,1898.3,6.64274745]
[1743225249781,1.79692124,1898.5,1898.3,6.64274745]
[1743225250459,1.79692124,1898.5,1898.4,0.7829]
[1743225250962,1.79692124,1898.5,1898.4,1.00271847]
[1743225251174,1.79692124,1898.5,1898.4,1.74517293]
[1743225252863,1.79692124,1898.5,1898.4,1.00271847]
[1743225255213,7.06423124,1898.5,1898.4,0.21981847]
[1743225255415,5.26762,1898.4,1898.1,1.0845898]
[1743225255591,1.79692124,1898.2,1898.1,1.0845898]
[1743225255792,1.79692124,1898.3,1898.1,1.0845898]
[1743225257012,1.79692124,1898.3,1898.2,0.22024727]
[1743225257887,1.79692124,1898.3,1898.1,6.3530098]
[1743225258215,1.79692124,1898.3,1898.2,0.22024727]
[1743225258613,1.79692124,1898.3,1898.1,7.59793878]
[1743225258815,1.79692124,1898.3,1898.2,0.22024727]
[1743225259014,1.79692124,1898.3,1898.1,7.59793878]
[1743225259219,1.79692124,1898.3,1898.2,0.22024727]
[1743225259616,1.79692124,1898.3,1898.1,7.59793878]
[1743225259815,1.79692124,1898.3,1898.2,0.22024727]
[1743225260113,1.79692124,1898.3,1898.1,7.59793878]
[1743225260415,1.79692124,1898.3,1898.2,0.22024727]
[1743225260614,1.79692124,1898.3,1898.1,7.59793878]
[1743225260816,1.79692124,1898.3,1898.2,0.22024727]
[1743225260994,1.79692124,1898.3,1898.1,7.65061709]
[1743225261194,1.79692124,1898.3,1898.2,0.22024727]
[1743225261506,1.79692124,1898.4,1898.1,7.65061709]
[1743225261811,1.79692124,1898.3,1898.2,0.22024727]
[1743225262016,1.79692124,1898.3,1898.1,1.0845898]
[1743225262228,1.79692124,1898.3,1898.2,0.22024727]
[1743225262719,1.79692124,1898.3,1898.1,1.0845898]
[1743225262881,1.79692124,1898.3,1898.2,0.22024727]
[1743225263316,1.79692124,1898.3,1898.1,1.0845898]
[1743225263616,1.79692124,1898.3,1898.2,0.22024727]
[1743225263915,1.79692124,1898.3,1898.1,1.0845898]
[1743225264109,1.79692124,1898.3,1898.2,0.22024727]
[1743225264417,1.79692124,1898.3,1898.1,1.0845898]
[1743225264622,7.06479124,1898.3,1898.2,0.22024727]
[1743225264789,7.06479124,1898.3,1898.1,1.0845898]
[1743225264990,1.79692124,1898.3,1898.2,0.22024727]
[1743225265222,1.79692124,1898.3,1898.1,1.0845898]
[1743225265428,1.79692124,1898.2,1898.1,1.0845898]
[1743225265626,7.06506124,1898.2,1898.1,0.033771]
[1743225266002,1.79692124,1898.2,1898.1,0.033771]
[1743225267593,7.06506124,1898.2,1898.1,0.033771]
[1743225267792,7.06506124,1898.2,1897.8,12.42499371]
[1743225268012,1.79692124,1898.2,1897.9,5.26894]
[1743225268219,1.79692124,1898.2,1897.9,6.506147]
[1743225269024,1.79692124,1898.2,1897.9,6.55883066]
[1743225270795,5.26804,1898.3,1897.9,6.55883066]
[1743225270995,1.79692124,1898.2,1897.9,6.55883066]
[1743225271422,1.79692124,1898.2,1898.0,0.03421512]
[1743225272025,1.79692124,1898.2,1898.1,0.22073672]
[1743225275132,7.06506124,1898.2,1898.1,0.25450772]
[1743225276546,1.79692124,1898.2,1898.1,0.25450772]
[1743225285253,7.06506124,1898.2,1898.1,0.25450772]
[1743225285436,8.59145736,1898.2,1898.1,0.25450772]
[1743225288037,9.13445736,1898.2,1898.1,0.25450772]
[1743225290632,15.19445736,1898.2,1898.1,0.25450772]
[1743225301468,20.14345736,1898.2,1898.1,0.25450772]
[1743225305482,13.83155736,1898.2,1898.1,0.25450772]
[1743225305662,6.06,1898.2,1898.1,0.25450772]
[1743225305840,7.85692124,1898.2,1898.1,0.25450772]
[1743225306044,6.06,1898.2,1898.1,0.25450772]
[1743225306247,7.85692124,1898.2,1898.1,0.25450772]
[1743225311297,1.79692124,1898.2,1898.1,0.25450772]
[1743225311465,7.06506124,1898.2,1898.1,0.25450772]
[1743225313281,1.79692124,1898.2,1898.1,0.25450772]
[1743225314100,7.06506124,1898.2,1898.1,0.25450772]
[1743225315167,14.32722,1898.6,1898.1,0.25450772]
[1743225315168,1.79692124,1898.5,1898.3,0.7556]
[1743225315367,1.79692124,1898.5,1898.3,1.357947]
[1743225315553,1.79692124,1898.5,1898.4,0.23207767]
[1743225317396,7.06423124,1898.5,1898.4,0.23207767]
[1743225319259,8.86115248,1898.5,1898.4,0.23207767]
[1743225324200,7.06423124,1898.5,1898.4,0.23207767]
[1743225324890,10.7817076,1898.5,1898.4,0.23207767]
[1743225325283,5.26796,1898.3,1898.1,0.7581]
[1743225325478,1.79692124,1898.2,1898.1,0.7581]
[1743225325679,1.79692124,1898.2,1898.1,0.99153971]
[1743225327602,1.79692124,1898.3,1898.1,0.99153971]
[1743225327894,1.79692124,1898.2,1898.1,1.61756268]
[1743225328469,1.79692124,1898.2,1898.1,0.99153971]
[1743225330099,7.06506124,1898.2,1898.1,0.23343971]
[1743225338986,5.26865,1898.1,1897.9,0.7581]
[1743225339188,1.79692124,1898.0,1897.9,0.7581]
[1743225340719,1.79692124,1898.0,1897.8,0.7598]
[1743225340893,1.79692124,1897.9,1897.8,1.362728]
[1743225341831,1.79692124,1897.9,1897.8,0.7598]
[1743225342629,1.79692124,1897.9,1897.8,0.79490351]
[1743225345604,7.06590124,1897.9,1897.8,0.03510351]
[1743225345926,7.06590124,1897.9,1897.6,0.7667]
[1743225346128,5.26898,1897.9,1897.8,0.03510351]
[1743225346334,7.06590124,1897.9,1897.7,0.03554777]
[1743225346531,7.06590124,1897.9,1897.8,0.03510351]
[1743225346906,7.06590124,1897.9,1897.6,0.7667]
[1743225347254,5.26898,1897.9,1897.8,0.21497299]
[1743225348024,6.400812,1897.9,1897.8,0.21497299]
[1743225348414,9.99465448,1897.9,1897.8,0.21497299]
[1743225348735,13.77505448,1897.9,1897.8,0.21497299]
[1743225349102,14.32505448,1897.9,1897.8,0.21497299]
[1743225349303,10.54031,1897.5,1897.2,0.7667]
[1743225349537,1.79692124,1897.3,1897.2,1.47770319]
[1743225349934,1.79692124,1897.3,1897.2,1.51547299]
[1743225350632,1.79692124,1897.3,1897.2,0.74877299]
[1743225350836,1.79692124,1897.3,1897.2,0.0377698]
[1743225351135,2.99600899,1897.3,1897.1,0.7667]
[1743225351340,2.99600899,1897.3,1897.2,0.0377698]
[1743225351640,2.99600899,1897.3,1897.1,0.7667]
[1743225351841,2.99600899,1897.3,1897.2,0.0377698]
[1743225352037,8.26664899,1897.3,1897.1,1.53927452]
[1743225352240,8.26664899,1897.3,1897.2,0.0377698]
[1743225352443,8.26664899,1897.3,1897.1,0.7667]
[1743225353340,5.27092,1897.2,1897.1,0.7667]
[1743225353537,13.53741899,1897.3,1897.1,0.7667]
[1743225354112,8.26664899,1897.3,1897.1,0.7667]
[1743225356247,2.99600899,1897.3,1897.1,0.7667]
[1743225361370,8.26668899,1897.3,1896.8,6.32818822]
[1743225361519,5.27112,1897.2,1896.9,0.8146]
[1743225361833,8.26668899,1897.3,1896.9,6.08635]
[1743225362033,8.26668899,1897.3,1897.0,0.18297111]
[1743225362246,5.27095,1897.2,1897.0,0.18297111]
[1743225363553,8.26720899,1897.1,1897.0,0.18297111]
[1743225367236,2.99600899,1897.1,1897.0,0.18297111]
[1743225369970,5.27095,1897.2,1897.0,0.18297111]
[1743225370471,10.54209,1897.2,1897.0,0.18297111]
[1743225370865,1.79778549,1897.1,1897.0,0.18297111]
[1743225372346,12.33977549,1897.2,1897.0,0.18297111]
[1743225373371,7.06873549,1897.2,1897.0,0.18297111]
[1743225377675,12.33990549,1897.2,1897.0,0.18297111]
[1743225378169,5.27095,1897.2,1897.0,0.18297111]
[1743225378362,7.06873549,1897.2,1897.0,0.18297111]
[1743225378777,1.79778549,1897.1,1897.0,0.18297111]
[1743225379072,7.06898549,1897.1,1896.7,0.7544]
[1743225379244,1.79778549,1896.9,1896.8,0.18384159]
[1743225382356,7.06953549,1896.9,1896.8,0.18384159]
[1743225382558,7.06953549,1896.9,1896.5,11.29986]
[1743225382763,1.79778549,1896.8,1896.5,6.0271]
[1743225383881,1.79778549,1896.6,1896.4,0.7544]
[1743225384186,7.07021549,1896.7,1896.4,0.7544]
[1743225384485,7.07021549,1896.7,1896.4,1.80520122]
[1743225384992,1.79778549,1896.7,1896.4,1.80520122]
[1743225385197,1.79778549,1896.7,1896.4,7.07822122]
[1743225385873,7.07018549,1896.7,1896.4,1.80520122]
[1743225389603,1.79778549,1896.6,1896.4,1.80520122]
[1743225390179,7.07018549,1896.7,1896.4,1.80520122]
[1743225390501,1.79778549,1896.6,1896.4,1.05080122]
[1743225390679,7.07018549,1896.7,1896.4,1.05080122]
[1743225390878,7.07018549,1896.7,1896.3,33.99515]
[1743225391602,7.07018549,1896.7,1896.3,6.09715]
[1743225391789,1.79778549,1896.6,1896.3,6.09715]
[1743225391990,1.79778549,1896.6,1896.4,0.16844483]
[1743225392302,1.79778549,1896.6,1896.3,6.09715]
[1743225392597,1.79778549,1896.6,1896.4,0.16844483]
[1743225392992,1.79778549,1896.6,1896.3,6.09715]
[1743225393171,1.79778549,1896.6,1896.5,0.16835714]
[1743225393371,1.79778549,1896.6,1896.4,0.16844483]
[1743225393602,1.79778549,1896.6,1896.5,0.16835714]
[1743225394005,1.79778549,1896.6,1896.3,6.09715]
[1743225394192,7.07018549,1896.7,1896.5,0.16835714]
[1743225394394,7.07018549,1896.7,1896.4,0.16844483]
[1743225394602,7.07018549,1896.7,1896.6,0.16826945]
[1743225394802,7.07018549,1896.7,1896.5,0.16835714]
[1743225395111,7.07018549,1896.7,1896.6,0.16826945]
[1743225395318,7.07018549,1896.7,1896.3,6.79420513]
[1743225395500,7.07018549,1896.7,1896.4,0.16844483]
[1743225395702,7.07018549,1896.7,1896.3,7.40810905]
[1743225395885,7.07018549,1896.7,1896.4,0.16844483]
[1743225396086,7.07018549,1896.7,1896.3,7.40810905]
[1743225396281,7.07018549,1896.7,1896.4,0.16844483]
[1743225396499,7.07018549,1896.7,1896.3,7.40810905]
[1743225396700,7.07018549,1896.7,1896.4,0.16844483]
[1743225396901,7.07018549,1896.7,1896.3,7.40810905]
[1743225397106,7.07018549,1896.7,1896.4,0.16895067]
[1743225397438,7.07018549,1896.7,1896.3,7.40810905]
[1743225397743,7.07018549,1896.7,1896.4,0.16895067]
[1743225398040,1.79778549,1896.6,1896.3,7.40810905]
[1743225398342,1.79778549,1896.6,1896.4,0.16895067]
[1743225398544,1.79778549,1896.6,1896.3,6.58410905]
[1743225398843,5.27287,1896.5,1896.4,0.16895067]
[1743225399144,7.07065549,1896.5,1896.2,1.04168538]
[1743225399302,7.07065549,1896.5,1896.3,0.16903837]
[1743225399496,5.27287,1896.5,1896.3,0.16903837]
[1743225399720,7.07040549,1896.6,1896.3,0.16903837]
[1743225405743,1.79778549,1896.5,1896.3,0.16903837]
[1743225407207,7.90070549,1896.6,1896.3,0.16903837]
[1743225408762,1.79778549,1896.5,1896.3,0.16903837]
[1743225409257,1.6580584,1896.5,1896.3,0.16903837]
[1743225410451,6.9309284,1896.5,1896.3,0.16903837]
[1743225410958,6.9309284,1896.5,1896.4,0.16956191]
[1743225411157,6.9309284,1896.5,1896.1,12.4373263]
[1743225411350,6.9309284,1896.5,1896.2,0.16973733]
[1743225411556,1.79778549,1896.4,1896.2,0.16973733]
[1743225411736,7.07065549,1896.5,1896.2,0.16973733]
[1743225412153,1.79778549,1896.3,1896.2,0.16973733]
[1743225412320,7.07120549,1896.3,1896.2,0.16973733]
[1743225412530,1.79778549,1896.3,1896.0,5.27426]
[1743225412723,1.79778549,1896.3,1896.1,0.21324646]
[1743225413559,7.07123549,1896.3,1896.1,0.21324646]
[1743225414269,1.79778549,1896.2,1896.1,0.21324646]
[1743225418133,7.07148549,1896.2,1896.1,0.21324646]
[1743225418862,7.07123549,1896.3,1896.1,0.21324646]
[1743225419239,1.79778549,1896.3,1896.1,0.21324646]
[1743225419627,7.90178549,1896.2,1896.1,0.21324646]
[1743225420159,9.69957098,1896.2,1896.1,0.21324646]
[1743225420485,10.24957098,1896.2,1896.1,0.21324646]
[1743225422729,19.30957098,1896.2,1896.1,0.21324646]
[1743225423332,17.51178549,1896.2,1896.1,0.21324646]
[1743225423538,19.17432678,1896.2,1896.1,0.21324646]
[1743225423733,19.17432678,1896.2,1895.0,0.7943]
[1743225423734,0.763,1895.5,1895.0,0.7943]
[1743225423966,1.79778549,1895.1,1895.0,0.7943]
[1743225424166,1.79778549,1895.2,1895.0,0.7943]
[1743225424867,5.27656,1895.2,1895.0,0.7943]
[1743225426571,5.27676,1895.1,1895.0,0.7943]
[1743225426742,5.27656,1895.2,1895.0,0.7943]
[1743225427443,5.27656,1895.2,1895.1,0.03858264]
[1743225428780,16.23417595,1895.2,1895.1,2.64e-06]
[1743225428959,5.27831,1894.6,1894.2,0.7943]
[1743225429277,5.27843,1894.5,1894.4,0.17679443]
[1743225429643,5.27843,1894.5,1894.2,0.7943]
[1743225429644,5.27871,1894.4,1894.2,0.7943]
[1743225429849,8.28149395,1894.4,1894.1,0.005]
[1743225430778,3.00278395,1894.4,1894.1,5.28448]
[1743225430946,3.00278395,1894.4,1894.1,0.005]
[1743225431145,8.28149395,1894.4,1894.1,0.005]
[1743225431345,8.28149395,1894.4,1894.3,0.29107257]
[1743225432485,12.83740545,1894.4,1894.3,0.29107257]
[1743225432651,15.83740545,1894.4,1894.3,0.1134775]
[1743225433047,16.38740545,1894.4,1894.3,0.1134775]
[1743225433662,5.82927,1894.2,1894.1,0.005]
[1743225433857,23.67095395,1894.2,1894.1,0.005]
[1743225434174,25.33349524,1894.2,1894.1,0.005]
[1743225435159,25.33349524,1894.2,1892.6,0.7821]
[1743225435160,0.8229,1893.5,1892.6,0.7821]
[1743225435359,4.989,1893.5,1893.0,0.7821]
[1743225435588,4.989,1893.5,1893.3,5.28164]
[1743225435768,4.989,1893.5,1893.0,6.06461]
[1743225435769,4.989,1893.5,1893.4,5.2815]
[1743225435976,4.989,1893.5,1893.3,5.28177]
[1743225436363,4.989,1893.5,1893.2,10.56372]